fUSD/lending_fUSD_20260608
["ID","MTS","AMOUNT","RATE_DAILY","PERIOD"]
[424461636,1780927861000,-200.0,0.00030909,2]
[424461664,1780927861000,-200.0,0.0003105,2]
[424461633,1780927861000,-1161.13,0.000309,7]
[424461642,1780927861000,-183.66132573,0.00030942,7]
[424461608,1780927861000,-5000.0,0.00030798,2]
[424461609,1780927861000,-5000.0,0.00030798,2]
[424461610,1780927861000,-1157.44,0.000308,7]
[424461611,1780927861000,-5000.0,0.00030801,2]
[424461612,1780927861000,-5000.0,0.00030801,2]
[424461613,1780927861000,-5000.0,0.00030801,2]
[424461614,1780927861000,-5000.0,0.00030801,2]
[424461616,1780927861000,-2000.0,0.00030805,7]
[424461617,1780927861000,-183.66132573,0.00030808,7]
[424461615,1780927861000,-5000.0,0.00030801,2]
[424461618,1780927861000,-798.67021028,0.00030821,2]
[424461619,1780927861000,-843.21696236,0.00030821,2]
[424461621,1780927861000,-838.60150101,0.00030821,2]
[424461626,1780927861000,-902.02098966,0.00030821,2]
[424461606,1780927861000,-5000.0,0.00030798,2]
[424461622,1780927861000,-915.60302356,0.00030821,2]
[424461620,1780927861000,-860.83660748,0.00030821,2]
[424461644,1780927861000,-183.66132573,0.00030975,7]
[424461634,1780927861000,-2000.0,0.000309,2]
[424461629,1780927861000,-209.0,0.0003084,30]
[424461632,1780927861000,-329.06,0.00030877,120]
[424461631,1780927861000,-183.66132573,0.00030875,7]
[424461645,1780927861000,-187.67701125,0.00030977,2]
[424461637,1780927861000,-1262.79364461,0.00030936,2]
[424461628,1780927861000,-700.0,0.00030822,60]
[424461623,1780927861000,-952.31959373,0.00030821,2]
[424461625,1780927861000,-798.87763268,0.00030821,2]
[424461627,1780927861000,-937.76729865,0.00030821,2]
[424461630,1780927861000,-183.66132573,0.00030841,7]
[424461624,1780927861000,-775.27277976,0.00030821,2]
[424461711,1780927862000,-183.66132573,0.00031209,30]
[424461706,1780927862000,-534.53,0.000312,30]
[424461709,1780927862000,-1000.0,0.000312,7]
[424461707,1780927862000,-1157.44,0.000312,7]
[424461700,1780927862000,-350.0,0.00031146,18]
[424461704,1780927862000,-207.99445433,0.00031173,4]
[424461702,1780927862000,-549.0,0.00031163,3]
[424461705,1780927862000,-183.66132573,0.00031176,30]
[424461708,1780927862000,-1161.13,0.000312,7]
[424461712,1780927862000,-200.0,0.00031218,2]
[424461703,1780927862000,-700.0,0.00031164,5]
[424461713,1780927862000,-273.0,0.00031231,30]
[424461701,1780927862000,-8948.0,0.00031163,10]
[424461714,1780927862000,-477.0,0.00031236,30]
[424461724,1780927862000,-4645.0,0.00031288,30]
[424461721,1780927862000,-183.66132573,0.00031276,30]
[424461694,1780927862000,-5000.0,0.00031129,2]
[424461716,1780927862000,-673.0,0.00031236,30]
[424461717,1780927862000,-183.66132573,0.00031243,30]
[424461719,1780927862000,-6932.29787324,0.00031264,2]
[424461718,1780927862000,-152.0,0.00031262,39]
[424461715,1780927862000,-751.0,0.00031236,30]
[424461720,1780927862000,-2748.88712402,0.00031267,7]
[424461710,1780927862000,-500.0,0.00031205,2]
[424461693,1780927862000,-5000.0,0.00031129,2]
[424461690,1780927862000,-5000.0,0.00031129,2]
[424461697,1780927862000,-1255.75,0.00031133,30]
[424461722,1780927862000,-332.39,0.00031279,5]
[424461671,1780927862000,-575.37,0.00031099,2]
[424461672,1780927862000,-183.66132573,0.00031109,30]
[424461678,1780927862000,-575.37,0.00031116,2]
[424461679,1780927862000,-395.95,0.00031116,2]
[424461675,1780927862000,-643.82,0.00031115,2]
[424461680,1780927862000,-329.06,0.00031123,120]
[424461673,1780927862000,-395.88,0.00031115,2]
[424461677,1780927862000,-644.03,0.00031116,2]
[424461676,1780927862000,-482.2,0.00031115,2]
[424461682,1780927862000,-250.0,0.00031129,2]
[424461696,1780927862000,-973.0,0.0003113,120]
[424461681,1780927862000,-350.0,0.00031125,18]
[424461685,1780927862000,-250.0,0.00031129,2]
[424461684,1780927862000,-250.0,0.00031129,2]
[424461687,1780927862000,-250.0,0.00031129,2]
[424461686,1780927862000,-250.0,0.00031129,2]
[424461688,1780927862000,-250.0,0.00031129,2]
[424461689,1780927862000,-5000.0,0.00031129,2]
[424461698,1780927862000,-477.5,0.00031137,2]
[424461692,1780927862000,-5000.0,0.00031129,2]
[424461691,1780927862000,-5000.0,0.00031129,2]
[424461699,1780927862000,-183.66132573,0.00031142,30]
[424461695,1780927862000,-5000.0,0.00031129,2]
[424461683,1780927862000,-250.0,0.00031129,2]
[424461674,1780927862000,-396.11,0.00031115,2]
[424461726,1780927862000,-165.0,0.00031288,30]
[424461736,1780927862000,-183.66132573,0.0003131,30]
[424461756,1780927862000,-250.0,0.0003146,2]
[424461755,1780927862000,-250.0,0.0003146,2]
[424461754,1780927862000,-250.0,0.0003146,2]
[424461758,1780927862000,-250.0,0.0003146,2]
[424461761,1780927862000,-5000.0,0.0003146,2]
[424461759,1780927862000,-5000.0,0.0003146,2]
[424461769,1780927862000,-986.41609787,0.000315,2]
[424461762,1780927862000,-5000.0,0.0003146,2]
[424461760,1780927862000,-5000.0,0.0003146,2]
[424461763,1780927862000,-5000.0,0.0003146,2]
[424461765,1780927862000,-183.66132573,0.00031477,30]
[424461753,1780927862000,-250.0,0.0003146,2]
[424461767,1780927862000,-201.04481126,0.000315,2]
[424461766,1780927862000,-356.0,0.00031497,14]
[424461770,1780927862000,-1161.13,0.000315,7]
[424461771,1780927862000,-1274.0,0.000315,2]
[424461774,1780927862000,-150.0,0.00031507,2]
[424461772,1780927862000,-223.0315306,0.00031504,2]
[424461773,1780927862000,-150.0,0.00031507,120]
[424461775,1780927862000,-183.66132573,0.0003151,30]
[424461778,1780927862000,-169.71,0.00031564,3]
[424461776,1780927862000,-183.66132573,0.00031544,30]
[424461777,1780927862000,-169.71,0.00031564,3]
[424461723,1780927862000,-1880.0,0.00031288,30]
[424461768,1780927862000,-150.0,0.000315,2]
[424461757,1780927862000,-250.0,0.0003146,2]
[424461764,1780927862000,-5000.0,0.0003146,2]
[424461752,1780927862000,-183.66132573,0.00031443,30]
[424461737,1780927862000,-151.0,0.00031312,2]
[424461751,1780927862000,-161.5,0.00031432,120]
[424461725,1780927862000,-521.0,0.00031288,30]
[424461727,1780927862000,-1704.0,0.00031288,30]
[424461733,1780927862000,-671.44,0.00031305,7]
[424461731,1780927862000,-540.0,0.0003129,30]
[424461728,1780927862000,-582.0,0.00031288,30]
[424461734,1780927862000,-1029.9,0.00031306,7]
[424461732,1780927862000,-861.0,0.0003129,30]
[424461730,1780927862000,-2673.0,0.0003129,30]
[424461735,1780927862000,-986.76,0.00031306,7]
[424461738,1780927862000,-7154.25965248,0.00031327,2]
[424461729,1780927862000,-630.0,0.0003129,30]
[424461740,1780927862000,-200.0,0.00031361,2]
[424461749,1780927862000,-6885.73499086,0.0003142,2]
[424461748,1780927862000,-183.66132573,0.0003141,30]
[424461747,1780927862000,-442.75372117,0.000314,30]
[424461750,1780927862000,-1216.87814556,0.0003143,4]
[424461741,1780927862000,-200.0,0.00031361,2]
[424461745,1780927862000,-187.67701125,0.00031378,2]
[424461743,1780927862000,-329.06,0.0003137,120]
[424461739,1780927862000,-183.66132573,0.00031343,30]
[424461746,1780927862000,-775.0,0.00031394,3]
[424461742,1780927862000,-200.0,0.00031361,2]
[424461744,1780927862000,-183.66132573,0.00031377,30]
[424461826,1780927863000,-575.37,0.00031853,2]
[424461825,1780927863000,-183.66132573,0.00031845,30]
[424461824,1780927863000,-6885.73499086,0.0003184,2]
[424461823,1780927863000,-183.66132573,0.00031811,30]
[424461814,1780927863000,-5000.0,0.00031791,2]
[424461813,1780927863000,-5000.0,0.00031791,2]
[424461815,1780927863000,-5000.0,0.00031791,2]
[424461818,1780927863000,-2000.0,0.000318,2]
[424461817,1780927863000,-5000.0,0.00031791,2]
[424461809,1780927863000,-250.0,0.00031791,2]
[424461812,1780927863000,-250.0,0.00031791,2]
[424461821,1780927863000,-986.91341204,0.00031804,2]
[424461816,1780927863000,-5000.0,0.00031791,2]
[424461841,1780927863000,-101838.07044082,0.00032,2]
[424461834,1780927863000,-183.66132573,0.00031912,30]
[424461828,1780927863000,-183.66132573,0.00031878,30]
[424461827,1780927863000,-329.06,0.00031863,120]
[424461830,1780927863000,-237.00310702,0.00031888,5]
[424461832,1780927863000,-1081.11,0.000319,7]
[424461822,1780927863000,-1194.73526385,0.00031804,2]
[424461833,1780927863000,-482.2,0.00031904,2]
[424461846,1780927863000,-467.0,0.00032,5]
[424461845,1780927863000,-319.2496585,0.00032,120]
[424461835,1780927863000,-6163.01015604,0.00031923,2]
[424461836,1780927863000,-307.0,0.00031936,2]
[424461837,1780927863000,-184.98,0.00031936,2]
[424461840,1780927863000,-183.66132573,0.00031979,30]
[424461811,1780927863000,-250.0,0.00031791,2]
[424461829,1780927863000,-152.0,0.00031888,41]
[424461820,1780927863000,-1412.71214874,0.00031804,2]
[424461783,1780927863000,-150.0,0.0003161,2]
[424461819,1780927863000,-1515.35237353,0.00031804,2]
[424461781,1780927863000,-165.83782373,0.00031578,5]
[424461782,1780927863000,-1157.44,0.000316,7]
[424461779,1780927863000,-152.0,0.00031575,40]
[424461780,1780927863000,-183.66132573,0.00031577,30]
[424461788,1780927863000,-6932.29787324,0.00031618,2]
[424461792,1780927863000,-183.66132573,0.00031644,30]
[424461791,1780927863000,-500.0,0.00031644,60]
[424461789,1780927863000,-150.0,0.00031644,2]
[424461790,1780927863000,-700.0,0.00031644,60]
[424461794,1780927863000,-1098.72362827,0.00031686,2]
[424461793,1780927863000,-183.66132573,0.00031678,30]
[424461787,1780927863000,-2049.28507797,0.00031616,2]
[424461784,1780927863000,-150.0,0.0003161,2]
[424461785,1780927863000,-183.66132573,0.00031611,30]
[424461786,1780927863000,-329.06,0.00031616,120]
[424461795,1780927863000,-1006.32180121,0.00031686,2]
[424461806,1780927863000,-183.66132573,0.00031778,30]
[424461800,1780927863000,-1812.99,0.00031703,30]
[424461802,1780927863000,-183.66132573,0.00031711,30]
[424461797,1780927863000,-930.32733571,0.00031686,2]
[424461796,1780927863000,-1142.78351248,0.00031686,2]
[424461799,1780927863000,-151.0,0.0003169,60]
[424461803,1780927863000,-500.44210262,0.00031731,2]
[424461801,1780927863000,-7154.25965248,0.0003171,2]
[424461805,1780927863000,-7130.07,0.00031756,14]
[424461798,1780927863000,-1125.32075838,0.00031686,2]
[424461804,1780927863000,-183.66132573,0.00031745,30]
[424461807,1780927863000,-187.67701125,0.00031779,2]
[424461810,1780927863000,-250.0,0.00031791,2]
[424461808,1780927863000,-250.0,0.00031791,2]
[424461842,1780927863000,-30129.28216256,0.00032,120]
[424461831,1780927863000,-6932.29787324,0.0003189,2]
[424461844,1780927863000,-162.08,0.00032,120]
[424461874,1780927863000,-501.4874395,0.00032,120]
[424461881,1780927863000,-7154.25965248,0.00032004,2]
[424461877,1780927863000,-1303.69300786,0.00032,120]
[424461883,1780927863000,-400.0,0.0003204,2]
[424461884,1780927863000,-400.0,0.0003204,2]
[424461882,1780927863000,-183.66132573,0.00032012,30]
[424461879,1780927863000,-1005.0,0.00032,7]
[424461886,1780927863000,-407.26698992,0.0003204,2]
[424461896,1780927863000,-5000.0,0.00032123,2]
[424461897,1780927863000,-5000.0,0.00032123,2]
[424461885,1780927863000,-400.0,0.0003204,2]
[424461894,1780927863000,-250.0,0.00032123,2]
[424461892,1780927863000,-250.0,0.00032123,2]
[424461895,1780927863000,-250.0,0.00032123,2]
[424461889,1780927863000,-329.06,0.0003211,120]
[424461893,1780927863000,-250.0,0.00032123,2]
[424461888,1780927863000,-183.66132573,0.00032079,30]
[424461890,1780927863000,-183.66132573,0.00032112,30]
[424461891,1780927863000,-6932.29787324,0.00032119,2]
[424461887,1780927863000,-183.66132573,0.00032046,30]
[424461900,1780927863000,-150.0,0.00032123,7]
[424461898,1780927863000,-5000.0,0.00032123,2]
[424461902,1780927863000,-1255.75,0.0003213,30]
[424461899,1780927863000,-5000.0,0.00032123,2]
[424461904,1780927863000,-6885.73499086,0.00032161,2]
[424461905,1780927863000,-183.66132573,0.00032179,30]
[424461901,1780927863000,-973.0,0.0003213,120]
[424461906,1780927863000,-187.67701125,0.0003218,2]
[424461903,1780927863000,-183.66132573,0.00032146,30]
[424461875,1780927863000,-585.11708042,0.00032,120]
[424461876,1780927863000,-422.2094086,0.00032,120]
[424461838,1780927863000,-183.66132573,0.00031945,30]
[424461880,1780927863000,-7154.25965248,0.00032004,2]
[424461878,1780927863000,-700.0,0.00032,2]
[424461843,1780927863000,-178.46581449,0.00032,120]
[424461839,1780927863000,-174.71,0.00031963,2]
[424461850,1780927863000,-19674.94157581,0.00032,10]
[424461857,1780927863000,-405.48409339,0.00032,120]
[424461847,1780927863000,-159.0,0.00032,120]
[424461858,1780927863000,-1709.00411793,0.00032,120]
[424461854,1780927863000,-581.77724585,0.00032,120]
[424461855,1780927863000,-489.0970043,0.00032,120]
[424461849,1780927863000,-4317.78,0.00032,14]
[424461856,1780927863000,-1293.5078227,0.00032,120]
[424461853,1780927863000,-1157.44,0.00032,7]
[424461852,1780927863000,-10000.0,0.00032,2]
[424461851,1780927863000,-500.0,0.00032,30]
[424461848,1780927863000,-500.0,0.00032,120]
[424461860,1780927863000,-1169.0887765,0.00032,120]
[424461870,1780927863000,-207.93342112,0.00032,120]
[424461872,1780927863000,-316.50883257,0.00032,120]
[424461863,1780927863000,-1312.09036746,0.00032,120]
[424461867,1780927863000,-1258.34449042,0.00032,120]
[424461859,1780927863000,-1190.96731354,0.00032,120]
[424461865,1780927863000,-1041.22602726,0.00032,120]
[424461864,1780927863000,-470.36704733,0.00032,120]
[424461873,1780927863000,-1139.68512875,0.00032,120]
[424461862,1780927863000,-856.14655267,0.00032,120]
[424461868,1780927863000,-538.57453114,0.00032,120]
[424461869,1780927863000,-1309.33220134,0.00032,120]
[424461866,1780927863000,-667.8764255,0.00032,120]
[424461871,1780927863000,-183.66887696,0.00032,120]
[424461861,1780927863000,-901.92105832,0.00032,120]
[424461941,1780927864000,-150.0,0.00032345,2]
[424461944,1780927864000,-183.66132573,0.0003238,30]
[424461946,1780927864000,-183.66132573,0.00032414,30]
[424461948,1780927864000,-6885.73499086,0.00032432,2]
[424461945,1780927864000,-1157.44,0.000324,7]
[424461938,1780927864000,-150.0,0.00032345,2]
[424461943,1780927864000,-329.06,0.00032356,120]
[424461947,1780927864000,-398.58,0.0003242,5]
[424461940,1780927864000,-150.0,0.00032345,2]
[424461950,1780927864000,-250.0,0.00032454,2]
[424461951,1780927864000,-250.0,0.00032454,2]
[424461952,1780927864000,-250.0,0.00032454,2]
[424461942,1780927864000,-183.66132573,0.00032347,30]
[424461954,1780927864000,-5000.0,0.00032454,2]
[424461964,1780927864000,-1010.83680052,0.000325,14]
[424461955,1780927864000,-5000.0,0.00032454,2]
[424461958,1780927864000,-183.66132573,0.0003248,30]
[424461963,1780927864000,-1000.0,0.000325,7]
[424461961,1780927864000,-1000.0,0.000325,2]
[424461956,1780927864000,-15600.0,0.00032463,7]
[424461957,1780927864000,-7154.25965248,0.00032469,2]
[424461959,1780927864000,-1812.99,0.00032485,30]
[424461960,1780927864000,-1000.0,0.000325,2]
[424461962,1780927864000,-1000.0,0.000325,2]
[424461965,1780927864000,-595.74,0.000325,20]
[424461975,1780927864000,-329.06,0.00032603,120]
[424461977,1780927864000,-2049.28507797,0.00032616,2]
[424461966,1780927864000,-6932.29787324,0.00032504,2]
[424461949,1780927864000,-183.66132573,0.00032447,30]
[424461953,1780927864000,-5000.0,0.00032454,2]
[424461939,1780927864000,-150.0,0.00032345,2]
[424461916,1780927864000,-350.0,0.0003225,6]
[424461926,1780927864000,-2673.0,0.0003229,30]
[424461976,1780927864000,-183.66132573,0.00032614,30]
[424461907,1780927864000,-217.3,0.00032192,120]
[424461911,1780927864000,-273.0,0.00032231,30]
[424461909,1780927864000,-183.66132573,0.00032213,30]
[424461910,1780927864000,-369.14576973,0.00032222,30]
[424461908,1780927864000,-3551.6,0.0003221,5]
[424461924,1780927864000,-582.0,0.00032288,30]
[424461913,1780927864000,-751.0,0.00032236,30]
[424461923,1780927864000,-1704.0,0.00032288,30]
[424461912,1780927864000,-477.0,0.00032236,30]
[424461920,1780927864000,-4645.0,0.00032288,30]
[424461921,1780927864000,-521.0,0.00032288,30]
[424461919,1780927864000,-1880.0,0.00032288,30]
[424461915,1780927864000,-183.66132573,0.00032246,30]
[424461918,1780927864000,-183.66132573,0.0003228,30]
[424461922,1780927864000,-165.0,0.00032288,30]
[424461914,1780927864000,-673.0,0.00032236,30]
[424461917,1780927864000,-7154.25965248,0.00032251,2]
[424461930,1780927864000,-26951.0,0.00032308,2]
[424461928,1780927864000,-861.0,0.0003229,30]
[424461929,1780927864000,-183920.28832138,0.000323,120]
[424461925,1780927864000,-630.0,0.0003229,30]
[424461927,1780927864000,-540.0,0.0003229,30]
[424461932,1780927864000,-620.0,0.00032317,3]
[424461934,1780927864000,-350.0,0.00032325,23]
[424461935,1780927864000,-150.0,0.00032345,2]
[424461936,1780927864000,-150.0,0.00032345,2]
[424461933,1780927864000,-6932.29787324,0.00032321,2]
[424461931,1780927864000,-183.66132573,0.00032313,30]
[424461937,1780927864000,-150.0,0.00032345,2]
[424461967,1780927864000,-1000.0,0.00032512,30]
[424461969,1780927864000,-183.66132573,0.00032547,30]
[424461974,1780927864000,-6508.51835429,0.00032592,2]
[424462014,1780927864000,-231.28369723,0.00032873,2]
[424462016,1780927864000,-1000.0,0.00032876,30]
[424462006,1780927864000,-223.8617748,0.00032815,120]
[424462004,1780927864000,-4925.88662844,0.000328,2]
[424462005,1780927864000,-1157.44,0.000328,7]
[424462008,1780927864000,-6932.29787324,0.00032828,2]
[424462007,1780927864000,-183.66132573,0.00032815,30]
[424462009,1780927864000,-7154.25965248,0.00032848,2]
[424462010,1780927864000,-183.66132573,0.00032848,30]
[424462011,1780927864000,-329.06,0.00032849,120]
[424462018,1780927864000,-1000.0,0.00032876,30]
[424462019,1780927864000,-1000.0,0.00032876,30]
[424462017,1780927864000,-1000.0,0.00032876,30]
[424462020,1780927864000,-1000.0,0.00032876,30]
[424462015,1780927864000,-1000.0,0.00032876,30]
[424462023,1780927864000,-1000.0,0.00032876,30]
[424462022,1780927864000,-1000.0,0.00032876,30]
[424462025,1780927864000,-1000.0,0.00032876,30]
[424462027,1780927864000,-1000.0,0.00032876,30]
[424462024,1780927864000,-1000.0,0.00032876,30]
[424462030,1780927864000,-1000.0,0.00032876,30]
[424462029,1780927864000,-1000.0,0.00032876,30]
[424462026,1780927864000,-1000.0,0.00032876,30]
[424462028,1780927864000,-1000.0,0.00032876,30]
[424462031,1780927864000,-1000.0,0.00032876,30]
[424462033,1780927864000,-1000.0,0.00032876,30]
[424462032,1780927864000,-1000.0,0.00032876,30]
[424461973,1780927864000,-6163.01015604,0.00032584,2]
[424462035,1780927864000,-1000.0,0.00032876,30]
[424462036,1780927864000,-1000.0,0.00032876,30]
[424462021,1780927864000,-1000.0,0.00032876,30]
[424462012,1780927864000,-209.0,0.0003286,30]
[424462034,1780927864000,-1000.0,0.00032876,30]
[424462002,1780927864000,-5000.0,0.00032785,2]
[424462013,1780927864000,-406.62165217,0.0003287,120]
[424461968,1780927864000,-183.66132573,0.00032514,30]
[424461972,1780927864000,-187.67701125,0.00032581,2]
[424461970,1780927864000,-150.0,0.00032562,2]
[424461978,1780927864000,-341.547513,0.00032616,2]
[424461980,1780927864000,-183.66132573,0.00032648,30]
[424461984,1780927864000,-6885.73499086,0.00032671,2]
[424461981,1780927864000,-7154.25965248,0.00032666,2]
[424461982,1780927864000,-7154.25965248,0.00032666,2]
[424461983,1780927864000,-6932.29787324,0.00032671,2]
[424461985,1780927864000,-6864.69976381,0.00032671,2]
[424461979,1780927864000,-2000.0,0.00032644,7]
[424461986,1780927864000,-183.66132573,0.00032681,30]
[424461987,1780927864000,-151.0,0.0003269,60]
[424461971,1780927864000,-183.66132573,0.00032581,30]
[424461988,1780927864000,-250.92,0.00032693,30]
[424462003,1780927864000,-836.18,0.00032785,2]
[424461998,1780927864000,-183.66132573,0.00032781,30]
[424461996,1780927864000,-183.66132573,0.00032748,30]
[424461995,1780927864000,-3174.9,0.00032743,2]
[424461989,1780927864000,-1149.44,0.000327,2]
[424461994,1780927864000,-183.66132573,0.00032715,30]
[424461999,1780927864000,-9733.84422501,0.00032785,2]
[424461997,1780927864000,-1132.26,0.0003276,7]
[424461993,1780927864000,-500.44210262,0.00032711,2]
[424462000,1780927864000,-250.0,0.00032785,2]
[424461991,1780927864000,-212.29643448,0.00032708,14]
[424461992,1780927864000,-212.97758165,0.00032708,14]
[424461990,1780927864000,-344.83,0.000327,2]
[424462001,1780927864000,-250.0,0.00032785,2]
[424462075,1780927865000,-6932.29787324,0.00032974,2]
[424462077,1780927865000,-2047.96,0.00032982,14]
[424462079,1780927865000,-187.67701125,0.00032982,2]
[424462078,1780927865000,-183.66132573,0.00032982,30]
[424462074,1780927865000,-6711.0,0.00032969,10]
[424462069,1780927865000,-719.1,0.000329,20]
[424462080,1780927865000,-1085.38189166,0.00032984,2]
[424462081,1780927865000,-517.96309,0.00032999,120]
[424462073,1780927865000,-183.66132573,0.00032949,30]
[424462070,1780927865000,-1420.73,0.000329,20]
[424462072,1780927865000,-183.66132573,0.00032915,30]
[424462071,1780927865000,-2683.03,0.000329,20]
[424462076,1780927865000,-2879.338,0.00032978,20]
[424462089,1780927865000,-1000.0,0.00033,5]
[424462084,1780927865000,-158.0,0.00033,120]
[424462086,1780927865000,-76943.41145489,0.00033,2]
[424462083,1780927865000,-1000.0,0.00033,30]
[424462085,1780927865000,-300.0,0.00033,30]
[424462082,1780927865000,-150.0,0.00033,120]
[424462091,1780927865000,-503.0,0.00033,120]
[424462087,1780927865000,-4317.78,0.00033,14]
[424462092,1780927865000,-52341.42667681,0.00033,2]
[424462088,1780927865000,-251.73155706,0.00033,30]
[424462090,1780927865000,-600.0,0.00033,5]
[424462094,1780927865000,-90116.50255829,0.00033,4]
[424462097,1780927865000,-152.0,0.00033,5]
[424462065,1780927865000,-165.83782373,0.00032882,5]
[424462093,1780927865000,-193585.88187897,0.00033,3]
[424462066,1780927865000,-6885.73499086,0.00032887,2]
[424462051,1780927865000,-236.693178,0.00032877,7]
[424462059,1780927865000,-2349.38,0.00032877,30]
[424462099,1780927865000,-581.77724585,0.00033,120]
[424462041,1780927865000,-1000.0,0.00032876,30]
[424462040,1780927865000,-1000.0,0.00032876,30]
[424462043,1780927865000,-1000.0,0.00032876,30]
[424462042,1780927865000,-1000.0,0.00032876,30]
[424462037,1780927865000,-1000.0,0.00032876,30]
[424462038,1780927865000,-1000.0,0.00032876,30]
[424462039,1780927865000,-1000.0,0.00032876,30]
[424462055,1780927865000,-229.0261266,0.00032877,2]
[424462048,1780927865000,-236.693178,0.00032877,7]
[424462049,1780927865000,-236.693178,0.00032877,7]
[424462053,1780927865000,-236.693178,0.00032877,7]
[424462052,1780927865000,-236.693178,0.00032877,7]
[424462054,1780927865000,-151.000014,0.00032877,7]
[424462044,1780927865000,-1004.47567347,0.00032876,30]
[424462046,1780927865000,-236.693178,0.00032877,7]
[424462045,1780927865000,-151.0,0.00032877,7]
[424462047,1780927865000,-236.693178,0.00032877,7]
[424462057,1780927865000,-687.07837981,0.00032877,2]
[424462067,1780927865000,-439.0,0.00032894,3]
[424462064,1780927865000,-183.66132573,0.00032882,30]
[424462061,1780927865000,-150.0,0.00032877,120]
[424462062,1780927865000,-150.0,0.00032877,2]
[424462058,1780927865000,-265.19,0.00032877,26]
[424462063,1780927865000,-378.489192,0.00032877,120]
[424462060,1780927865000,-448.0,0.00032877,120]
[424462056,1780927865000,-458.05225321,0.00032877,2]
[424462068,1780927865000,-209.05,0.000329,20]
[424462096,1780927865000,-1161.13,0.00033,30]
[424462050,1780927865000,-236.693178,0.00032877,7]
[424462095,1780927865000,-216.438155,0.00033,14]
[424462142,1780927865000,-322.6107,0.00033099,30]
[424462133,1780927865000,-6885.73499086,0.00033086,2]
[424462131,1780927865000,-150.0,0.0003308,2]
[424462138,1780927865000,-311.1,0.00033099,30]
[424462139,1780927865000,-275.0,0.00033099,30]
[424462141,1780927865000,-3000.0,0.00033099,30]
[424462136,1780927865000,-300.0,0.00033099,30]
[424462134,1780927865000,-6163.01015604,0.00033092,2]
[424462135,1780927865000,-329.06,0.00033096,120]
[424462137,1780927865000,-151.0,0.00033099,30]
[424462140,1780927865000,-156.587,0.00033099,30]
[424462143,1780927865000,-275.0,0.00033099,30]
[424462145,1780927865000,-3111.0,0.00033099,30]
[424462132,1780927865000,-183.66132573,0.00033083,30]
[424462146,1780927865000,-162.380719,0.00033099,30]
[424462148,1780927865000,-168.3888056,0.00033099,30]
[424462155,1780927865000,-151.0,0.00033099,30]
[424462153,1780927865000,-518.5,0.00033099,30]
[424462144,1780927865000,-500.0,0.00033099,30]
[424462159,1780927865000,-187.78006524,0.00033099,30]
[424462149,1780927865000,-3106.26604123,0.00033099,30]
[424462147,1780927865000,-334.5472959,0.00033099,30]
[424462154,1780927865000,-359.76179104,0.00033099,30]
[424462152,1780927865000,-174.61919141,0.00033099,30]
[424462157,1780927865000,-537.6845,0.00033099,30]
[424462156,1780927865000,-181.08010149,0.00033099,30]
[424462158,1780927865000,-373.07297731,0.00033099,30]
[424462098,1780927865000,-152.0,0.00033,5]
[424462151,1780927865000,-151.0,0.00033099,30]
[424462128,1780927865000,-150.0,0.0003308,2]
[424462150,1780927865000,-346.92554584,0.00033099,30]
[424462124,1780927865000,-183.66132573,0.00033049,30]
[424462127,1780927865000,-150.0,0.0003308,2]
[424462105,1780927865000,-1190.96731354,0.00033,120]
[424462100,1780927865000,-489.0970043,0.00033,120]
[424462102,1780927865000,-405.48409339,0.00033,120]
[424462104,1780927865000,-1169.0887765,0.00033,120]
[424462103,1780927865000,-1709.00411793,0.00033,120]